bitfinex/quotes_SOLUSD_20241214
["timestamp","ask_amount","ask_price","bid_price","bid_amount"]
[1734138113116,7.88359882,225.23,225.11,18.74533092]
[1734138113711,7.88359882,225.23,225.14,18.74533092]
[1734138114012,0.530409,225.23,225.16,18.74533092]
[1734138114213,0.530409,225.23,225.17,0.66601817]
[1734138114622,0.530409,225.23,225.17,19.41134909]
[1734138115131,0.530409,225.23,225.18,18.74533092]
[1734138115311,0.530409,225.23,225.19,19.41123457]
[1734138116814,0.530409,225.23,225.19,0.66590365]
[1734138117014,0.530409,225.23,225.19,19.41123457]
[1734138117710,0.530409,225.23,225.19,0.66590365]
[1734138117910,0.530409,225.23,225.19,19.41123457]
[1734138118106,0.530409,225.23,225.2,18.74533092]
[1734138118310,0.530409,225.23,225.21,19.41118561]
[1734138118515,0.530409,225.23,225.22,18.74533092]
[1734138119231,0.530409,225.23,225.22,0.6657495]
[1734138119824,0.530409,225.23,225.22,19.41108042]
[1734138122135,0.530409,225.23,225.22,0.6657495]
[1734138122336,0.530409,225.23,225.18,0.66574044]
[1734138122543,0.530409,225.23,225.17,18.74533092]
[1734138123043,0.530409,225.23,225.16,18.74533092]
[1734138123216,0.530409,225.23,225.15,18.74533092]
[1734138123420,1.22349882,225.23,225.13,19.41128115]
[1734138123616,1.22349882,225.23,225.14,18.74533092]
[1734138123820,1.22349882,225.23,225.14,19.41141538]
[1734138124540,1.22349882,225.23,225.11,6.18516961]
[1734138124541,14.8071,225.22,225.12,19.41141072]
[1734138124727,0.69308982,225.21,225.11,18.74533092]
[1734138125452,0.69308982,225.21,225.08,18.74533092]
[1734138125732,0.69308982,225.21,225.09,18.74533092]
[1734138126441,6.78619,225.2,225.09,18.74533092]
[1734138126645,0.25098,225.18,225.05,6.18516961]
[1734138126820,0.81857982,225.17,225.05,18.74533092]
[1734138127134,20.69308982,225.17,225.07,18.74533092]
[1734138127333,20.69308982,225.17,225.08,18.74533092]
[1734138127518,20.69308982,225.17,225.07,18.74533092]
[1734138127839,0.69308982,225.17,225.08,19.41161433]
[1734138128034,0.69308982,225.19,225.08,19.41161433]
[1734138129530,0.69308982,225.19,225.08,18.74533092]
[1734138129739,0.69308982,225.19,225.07,18.74533092]
[1734138130217,0.69308982,225.19,225.1,18.74533092]
[1734138130433,0.69308982,225.21,225.11,0.66617316]
[1734138131049,0.69308982,225.21,225.1,18.74533092]
[1734138131742,8.84008982,225.22,225.12,18.74533092]
[1734138131963,8.147,225.22,225.14,18.74533092]
[1734138132240,8.147,225.22,225.15,19.41136134]
[1734138132425,8.147,225.22,225.16,18.74533092]
[1734138132746,8.147,225.22,225.17,0.66596832]
[1734138133042,0.530409,225.23,225.2,18.74533092]
[1734138133520,0.530409,225.23,225.19,18.74533092]
[1734138133720,0.530409,225.23,225.2,0.66587505]
[1734138134122,0.530409,225.23,225.2,19.41120597]
[1734138135078,0.530409,225.23,225.21,18.74533092]
[1734138135224,0.530409,225.23,225.21,19.41113918]
[1734138135555,0.530409,225.23,225.19,18.74533092]
[1734138135769,0.530409,225.23,225.16,30.0]
[1734138135770,0.530409,225.23,225.2,19.41124046]
[1734138136663,0.530409,225.23,225.21,18.74533092]
[1734138136978,0.530409,225.23,225.22,18.74533092]
[1734138137175,0.530409,225.23,225.21,19.41114377]
[1734138137472,0.530409,225.23,225.21,0.66581285]
[1734138138662,0.530409,225.23,225.22,18.74533092]
[1734138138858,0.530409,225.23,225.22,0.66578346]
[1734138139449,0.530409,225.23,225.22,19.41111438]
[1734138139639,0.530409,225.23,225.22,49.41111438]
[1734138141061,0.530409,225.23,225.22,19.41111438]
[1734138141244,0.530409,225.23,225.22,49.41111438]
[1734138141444,0.530409,225.23,225.22,42.36272478]
[1734138141663,0.530409,225.23,225.22,202.51607878]
[1734138141861,0.530409,225.23,225.22,208.01307604]
[1734138142259,8.0986,225.39,225.22,208.01307604]
[1734138142260,8.629009,225.45,225.35,11.69694132]
[1734138142457,8.629009,225.45,225.36,0.66538189]
[1734138143369,8.629009,225.45,225.35,0.66529474]
[1734138143854,8.629009,225.45,225.37,30.0]
[1734138144055,0.530409,225.45,225.38,0.66524734]
[1734138145251,0.530409,225.45,225.39,18.69524911]
[1734138145457,0.530409,225.45,225.42,18.69524911]
[1734138145770,0.530409,225.45,225.43,0.66516372]
[1734138146146,0.530409,225.45,225.43,30.66516372]
[1734138146347,0.530409,225.45,225.44,18.69524911]
[1734138146566,0.530409,225.45,225.44,24.85802983]
[1734138146766,0.530409,225.45,225.44,18.69524911]
[1734138146962,0.530409,225.45,225.43,30.66516372]
[1734138148061,0.530409,225.45,225.43,0.66516372]
[1734138148366,0.530409,225.45,225.44,19.36042901]
[1734138148567,0.530409,225.45,225.44,19.61140901]
[1734138148760,0.530409,225.45,225.44,25.62557473]
[1734138149069,0.530409,225.45,225.44,67.87744963]
[1734138149452,0.530409,225.45,225.44,62.87744963]
[1734138149780,0.530409,225.45,225.44,67.87744963]
[1734138150254,0.530409,225.45,225.44,62.87744963]
[1734138150753,0.530409,225.45,225.44,62.75195963]
[1734138150955,0.530409,225.45,225.44,19.36042901]
[1734138152177,0.530409,225.45,225.44,25.24910473]
[1734138152354,0.530409,225.45,225.44,49.15147873]
[1734138153755,0.530409,225.45,225.44,49.27696873]
[1734138154279,1.99425214,225.62,225.53,18.69524911]
[1734138154505,1.99425214,225.62,225.54,0.66485063]
[1734138155453,0.69308982,225.61,225.5,0.66486587]
[1734138155857,1.18734196,225.62,225.5,0.66486587]
[1734138156576,1.18734196,225.62,225.48,0.66502838]
[1734138156753,0.12549,225.61,225.48,0.66502838]
[1734138156956,0.12549,225.61,225.39,179.3583486]
[1734138156957,6.3758,225.57,225.44,18.69524911]
[1734138157151,0.12549,225.56,225.45,0.66512988]
[1734138157356,0.12549,225.56,225.43,0.66513409]
[1734138157784,24.027864,225.56,225.4,0.66521026]
[1734138158074,6.3758,225.57,225.46,18.69524911]
[1734138158251,6.3758,225.57,225.47,19.36028026]
[1734138158450,6.3758,225.57,225.47,0.66503115]
[1734138158866,1.5635,225.56,225.47,0.66503115]
[1734138159271,1.5635,225.56,225.45,0.66504344]
[1734138159680,1.5635,225.56,225.47,48.69524911]
[1734138159859,1.5635,225.56,225.48,0.66493241]
[1734138161067,1.5635,225.56,225.46,0.66497633]
[1734138161468,1.5635,225.56,225.41,0.6651759]
[1734138162054,20.0,225.54,225.41,0.6651759]
[1734138162374,6.56343349,225.56,225.4,0.66530187]
[1734138162761,1.5635,225.56,225.4,0.66530187]
[1734138162964,6.6509,225.53,225.38,0.66529115]
[1734138163166,6.3758,225.52,225.38,0.66529115]
[1734138163379,6.56343349,225.51,225.35,0.66539039]
[1734138163877,6.56343349,225.51,225.31,18.69524911]
[1734138163878,20.0,225.49,225.31,18.69524911]
[1734138164178,20.0,225.49,225.32,0.66543838]
[1734138164762,20.0,225.49,225.33,30.0]
[1734138164964,20.0,225.49,225.34,0.66539036]
[1734138165166,13.27918,225.48,225.32,0.66543961]
[1734138165397,1.5635,225.47,225.32,0.66543961]
[1734138166160,1.5635,225.47,225.3,0.66555299]
[1734138166771,1.5635,225.47,225.31,23.776884]
[1734138167104,1.5635,225.47,225.33,24.027864]
[1734138167391,1.5635,225.47,225.35,23.776884]
[1734138167573,1.5635,225.47,225.36,0.66540211]
[1734138168171,1.5635,225.47,225.35,0.66544096]
[1734138169100,20.0,225.45,225.35,0.66544096]
[1734138169299,20.0,225.45,225.28,0.66560127]
[1734138169300,6.4759,225.44,225.28,0.66560127]
[1734138170386,6.4759,225.44,225.27,0.6656596]
[1734138170699,20.0,225.4,225.27,0.6656596]
[1734138170867,20.0,225.4,225.26,0.66574025]
[1734138171803,6.4759,225.39,225.23,0.12549]
[1734138171973,6.4759,225.39,225.22,0.66575022]
[1734138172785,1.6642,225.38,225.23,0.66577203]
[1734138173189,20.0,225.35,225.21,0.66582733]
[1734138173482,6.4759,225.34,225.17,0.6658614]
[1734138173794,6.4759,225.34,225.18,0.12549]
[1734138174167,6.4759,225.34,225.2,0.12549]
[1734138174571,6.4759,225.34,225.19,0.66591125]
[1734138174772,1.6642,225.33,225.19,0.66591125]
[1734138174987,8.3211,225.33,225.19,0.66591125]
[1734138175187,8.3211,225.33,225.17,0.66595615]
[1734138175492,1.6642,225.29,225.17,0.66595615]
[1734138175669,6.4759,225.26,225.13,0.66597263]
[1734138175863,6.4759,225.26,225.14,0.12549]
[1734138176064,6.4759,225.26,225.1,0.66606243]
[1734138176597,6.4759,225.26,225.11,0.12549]
[1734138177014,1.6642,225.25,225.11,0.12549]
[1734138177481,1.6642,225.25,225.11,0.25098]
[1734138177677,1.6642,225.25,225.12,0.66614406]
[1734138178395,1.6642,225.25,225.09,0.66614476]
[1734138178396,20.0,225.23,225.09,0.66614476]
[1734138178572,6.6595,225.24,225.09,0.66614476]
[1734138178769,6.6595,225.24,225.06,0.66621679]
[1734138179504,6.6605,225.21,225.06,0.66621679]
[1734138179674,6.4759,225.19,225.04,0.66625428]
[1734138179873,6.4759,225.19,224.99,0.66639575]
[1734138180394,20.0,225.16,224.99,0.66639575]
[1734138180580,1.6642,225.15,224.99,0.66639575]
[1734138180773,20.0,225.1,224.97,0.66648992]
[1734138180980,4.99993349,225.09,224.93,0.66658879]
[1734138181277,6.4759,225.03,224.92,0.12549]
[1734138181482,6.4759,225.03,224.91,0.66665895]
[1734138181889,6.4759,225.03,224.9,0.530409]
[1734138182278,6.4759,225.03,224.91,0.12549]
[1734138182478,6.4759,225.03,224.9,1.19718928]
[1734138182678,6.4759,225.03,224.9,0.530409]
[1734138182893,13.1418,225.03,224.9,0.530409]
[1734138185973,20.0,224.99,224.9,0.530409]
[1734138186393,19.030476,225.03,224.9,0.530409]
[1734138186581,20.0,225.0,224.9,0.530409]
[1734138187098,23.14173349,225.03,224.9,0.530409]
[1734138187099,20.0,224.96,224.9,0.530409]
[1734138187572,1.5559,224.97,224.9,0.530409]
[1734138188299,21.5559,224.97,224.9,0.530409]
[1734138189601,21.5559,224.97,224.79,0.66697776]
[1734138189602,6.3077,224.92,224.79,0.66697776]
[1734138189899,6.3077,224.92,224.77,0.12549]
[1734138190283,6.3077,224.92,224.77,19.48782022]
[1734138190591,6.3077,224.92,224.77,19.36233022]
[1734138190793,6.3077,224.92,224.77,30.66708111]
[1734138190982,6.3077,224.92,224.81,18.69524911]
[1734138191180,6.3077,224.92,224.83,0.12549]
[1734138191771,6.3077,224.92,224.84,0.66697194]
[1734138191974,1.5559,224.97,224.85,18.94622911]
[1734138192172,1.5559,224.97,224.87,0.25098]
[1734138192373,6.3077,224.98,224.89,18.69524911]
[1734138192595,7.8636,225.03,224.9,0.91776943]
[1734138192899,7.8636,225.03,224.88,0.666767]
[1734138193503,7.8636,225.03,224.89,0.25098]
[1734138193697,6.666,225.02,224.86,0.12549]
[1734138193892,7.8636,225.03,224.91,18.69524911]
[1734138194095,7.8636,225.15,224.95,0.12549]
[1734138194305,17.246853,225.15,224.96,0.12549]
[1734138194603,7.8636,225.15,224.97,0.66656032]
[1734138194901,5.0,225.1,224.91,5.88867572]
[1734138195081,6.3077,225.07,224.89,0.12549]
[1734138195280,6.3077,225.07,224.91,0.25098]
[1734138195483,20.0,225.04,224.91,0.25098]
[1734138195703,1.5559,225.03,224.91,0.25098]
[1734138195879,1.5559,225.03,224.88,0.66677313]
[1734138196079,1.5559,225.03,224.89,0.12549]
[1734138196297,1.5559,225.03,224.88,0.66677313]
[1734138196497,21.5559,225.03,224.87,0.79237351]
[1734138196799,21.5559,225.03,224.85,0.66690194]
[1734138196800,20.0,225.01,224.85,0.66690194]
[1734138197100,23.776884,225.0,224.83,19.36217395]
[1734138197291,6.3077,224.96,224.81,0.66696386]
[1734138197713,6.6681,224.95,224.79,0.66702298]
[1734138197880,1.5559,224.94,224.79,0.66702298]
[1734138198204,20.0,224.92,224.77,0.66714306]
[1734138198778,20.0,224.92,224.8,18.82073911]
[1734138198980,1.5559,224.94,224.82,0.12549]
[1734138199556,1.5559,224.94,224.82,42.59762311]
[1734138199720,1.5559,224.94,224.84,23.902374]
[1734138200012,1.5559,224.94,224.84,0.12549]
[1734138200418,1.5559,224.94,224.82,0.66699013]
[1734138200708,1.5559,224.94,224.84,0.12549]
[1734138201117,1.5559,224.94,224.84,0.79248011]
[1734138201281,1.5559,224.94,224.86,0.12549]
[1734138202411,1.5559,224.94,224.83,0.12549]
[1734138202623,1.5559,224.94,224.85,0.12549]
[1734138202789,1.5559,224.94,224.86,23.902374]
[1734138203000,1.5559,224.94,224.87,0.12549]
[1734138203182,6.3077,224.96,224.87,0.12549]
[1734138204038,6.3077,224.96,224.87,18.69524911]
[1734138204224,1.5559,225.0,224.92,0.12549]
[1734138204433,1.5559,225.0,224.94,0.12549]
[1734138204934,6.3077,225.01,224.93,0.25098]
[1734138206037,6.15631039,225.01,224.91,0.25098]
[1734138206208,6.15631039,225.01,224.93,0.25098]
[1734138207077,6.15631039,225.01,224.88,0.66675796]
[1734138207207,6.15631039,225.01,224.91,42.47213311]
[1734138207408,6.15631039,225.01,224.94,0.12549]
[1734138207604,1.5559,225.06,224.95,0.12549]
[1734138208147,1.5559,225.06,224.91,23.776884]
[1734138208329,1.5559,225.06,224.92,0.12549]
[1734138208630,1.5559,225.06,224.92,0.25098]
[1734138208835,6.1686,225.03,224.92,0.25098]
[1734138210129,6.1686,225.03,224.94,24.027864]
[1734138210327,6.1686,225.03,224.96,0.12549]
[1734138210623,1.5559,225.06,224.97,0.12549]
[1734138212012,1.5559,225.06,224.99,0.12549]
[1734138212632,6.1686,225.13,225.04,0.12549]
[1734138212817,6.1686,225.13,225.06,0.25098]
[1734138213021,6.1686,225.13,225.06,0.91730193]
[1734138213519,6.1686,225.13,225.08,0.25098]
[1734138213716,1.5835,225.16,225.08,0.91729297]
[1734138213919,1.5835,225.16,225.1,0.25098]
[1734138214844,6.1686,225.19,225.1,0.91721259]
[1734138215029,6.1686,225.19,225.12,0.25098]
[1734138215420,6.1686,225.19,225.12,0.91713493]
[1734138215620,1.5835,225.21,225.14,0.25098]
[1734138215820,1.5835,225.21,225.14,0.9170821]
[1734138216345,6.1686,225.24,225.16,0.12549]
[1734138216525,6.6573,225.32,225.18,0.25098]
[1734138216526,6.1686,225.31,225.18,0.25098]
[1734138216727,6.1686,225.31,225.2,24.027864]
[1734138216945,6.1686,225.31,225.22,0.25098]
[1734138217335,6.1686,225.31,225.22,24.027864]
[1734138217933,6.1686,225.31,225.22,0.12549]
[1734138218629,1.5835,225.35,225.23,42.72311311]
[1734138218818,1.5835,225.35,225.25,24.027864]
[1734138219024,1.5835,225.35,225.27,24.027864]
[1734138219956,1.5835,225.35,225.27,0.12549]
[1734138220130,1.5835,225.35,225.25,0.12549]
[1734138220321,1.5835,225.35,225.25,0.25098]
[1734138220519,1.5835,225.35,225.23,0.12549]
[1734138221025,1.5835,225.35,225.23,0.25098]
[1734138221354,20.0,225.33,225.23,0.25098]
[1734138221843,7.7521,225.43,225.31,0.25098]
[1734138222095,7.7521,225.43,225.35,0.12549]
[1734138222223,7.7521,225.43,225.33,18.69524911]
[1734138222558,7.7521,225.43,225.28,30.0]
[1734138222559,7.7521,225.43,225.34,0.66549291]
[1734138222718,7.7521,225.43,225.32,0.12549]
[1734138222922,7.7521,225.43,225.32,18.94622911]
[1734138223728,7.7521,225.43,225.32,0.25098]
[1734138223931,7.7521,225.43,225.31,24.44249891]
[1734138223932,7.7521,225.43,225.38,18.69524911]
[1734138224246,6.1686,225.48,225.39,24.027864]
[1734138224444,6.1686,225.48,225.41,0.25098]
[1734138224837,6.1686,225.48,225.41,0.12549]
[1734138225144,6.1686,225.48,225.41,23.902374]
[1734138225464,5.0,225.6,225.41,23.902374]
[1734138225465,6.6482,225.63,225.44,62.72311311]
[1734138225630,2.68064522,225.64,225.44,93.3881396]
[1734138225861,2.68064522,225.64,225.47,0.25098]
[1734138226165,2.65803609,225.66,225.54,18.69524911]
[1734138226350,0.530409,225.68,225.5,0.66491695]
[1734138226551,0.530409,225.68,225.56,18.69524911]
[1734138226765,0.530409,225.68,225.54,18.69524911]
[1734138226966,0.530409,225.68,225.5,18.69524911]
[1734138227175,0.530409,225.68,225.46,42.47213311]
[1734138227176,5.0,225.66,225.46,42.47213311]
[1734138227457,5.0,225.66,225.42,5.88867572]
[1734138227458,4.99993349,225.67,225.44,18.69524911]
[1734138227459,0.12549,225.62,225.44,18.69524911]
[1734138227787,20.0,225.6,225.48,18.69524911]
[1734138228076,20.0,225.6,225.5,18.69524911]
[1734138228376,20.0,225.6,225.49,18.69524911]
[1734138228573,20.0,225.6,225.46,18.69524911]
[1734138228780,0.12549,225.59,225.42,18.69524911]
[1734138229496,20.0,225.56,225.41,18.69524911]
[1734138229803,20.0,225.55,225.39,18.69524911]
[1734138229998,20.0,225.51,225.37,18.69524911]
[1734138230296,20.0,225.45,225.3,18.69524911]
[1734138230654,20.0,225.45,225.35,18.69524911]
[1734138230849,20.0,225.45,225.32,18.69524911]
[1734138231067,20.0,225.44,225.31,18.69524911]
[1734138231268,20.0,225.44,225.29,18.69524911]
[1734138231561,20.0,225.43,225.29,18.69524911]
[1734138231967,20.0,225.39,225.25,18.69524911]
[1734138232166,20.0,225.39,225.23,18.69524911]
[1734138233076,6.6554,225.38,225.23,18.69524911]
[1734138233277,6.6554,225.38,225.18,0.66582195]
[1734138233278,6.6554,225.38,225.22,18.69524911]
[1734138233480,6.6554,225.38,225.17,30.0]
[1734138233481,20.0,225.35,225.24,18.69524911]
[1734138233783,20.0,225.35,225.23,18.69524911]
[1734138234161,20.0,225.35,225.24,18.69524911]
[1734138234358,20.0,225.35,225.22,18.69524911]
[1734138234764,20.0,225.35,225.23,18.69524911]
[1734138235288,20.0,225.39,225.29,18.69524911]
[1734138235664,20.0,225.39,225.28,18.69524911]
[1734138235864,20.0,225.39,225.26,18.69524911]
[1734138236183,6.0719,225.34,225.18,18.69524911]
[1734138236389,6.0719,225.34,225.19,0.66595052]
[1734138236855,20.0,225.31,225.16,18.69524911]
[1734138237058,1.5501,225.3,225.14,18.69524911]
[1734138237557,20.0,225.29,225.14,18.69524911]
[1734138238779,20.0,225.25,225.12,18.69524911]
[1734138239169,20.0,225.25,225.11,30.44709688]
[1734138239771,20.0,225.25,225.09,30.44709688]
[1734138240177,0.12549,225.24,225.07,30.44709688]
[1734138240371,20.0,225.23,225.07,30.44709688]
[1734138240862,26.6601,225.23,225.07,30.44709688]
[1734138241064,20.0,225.25,225.09,30.44709688]
[1734138241388,20.0,225.24,225.11,30.44709688]
[1734138241565,20.0,225.24,225.1,31.11329977]
[1734138241765,20.0,225.24,225.09,30.44709688]
[1734138242163,1.5501,225.3,225.17,30.44709688]
[1734138242362,4.99993349,225.39,225.26,30.44709688]
[1734138242363,1.5501,225.39,225.26,30.44709688]
[1734138242567,1.5501,225.39,225.28,30.44709688]
[1734138242875,1.5501,225.39,225.3,30.44709688]
[1734138243197,1.5501,225.39,225.32,30.44709688]
[1734138243371,6.0719,225.42,225.32,30.44709688]
[1734138244890,6.0719,225.42,225.3,30.44709688]
[1734138245196,6.0719,225.42,225.31,0.66554385]
[1734138245493,6.0719,225.42,225.28,30.44709688]
[1734138245671,6.0719,225.42,225.29,0.66561708]
[1734138245876,6.0719,225.42,225.3,30.44709688]
[1734138246586,6.0719,225.42,225.19,27.32849]
[1734138246587,6.0719,225.42,225.24,31.11271485]
[1734138246963,6.0719,225.42,225.29,30.44709688]
[1734138247785,6.0719,225.42,225.27,30.44709688]
[1734138248879,6.0719,225.42,225.24,0.12549]
[1734138249086,6.0719,225.42,225.31,30.44709688]
[1734138249287,6.0719,225.42,225.32,0.66551492]
[1734138249666,6.0719,225.42,225.29,30.44709688]
[1734138249875,6.0719,225.42,225.31,30.44709688]
[1734138250290,6.0719,225.42,225.29,30.44709688]
[1734138250677,6.0719,225.42,225.28,0.66555943]
[1734138250893,6.0719,225.42,225.29,30.44709688]
[1734138251188,6.0719,225.42,225.29,31.11273981]
[1734138252075,6.0719,225.42,225.29,30.44709688]
[1734138252276,6.0719,225.42,225.25,0.66560998]
[1734138252277,6.0719,225.42,225.27,30.44709688]
[1734138252676,6.0719,225.42,225.27,31.11274602]
[1734138253396,6.0719,225.42,225.3,30.44709688]
[1734138253599,12.7262,225.42,225.3,30.44709688]
[1734138253785,20.0,225.39,225.26,30.44709688]
[1734138254098,20.0,225.39,225.13,10.0]
[1734138254099,20.0,225.39,225.24,30.44709688]
[1734138254883,20.0,225.39,225.25,30.44709688]
[1734138254884,6.6554,225.38,225.25,30.44709688]
[1734138255087,6.0719,225.42,225.33,30.44709688]
[1734138255481,6.0719,225.42,225.37,30.44709688]
[1734138256598,6.0719,225.42,225.35,30.44709688]
[1734138256803,7.5856,225.48,225.39,30.44709688]
[1734138257004,7.5856,225.48,225.42,30.44709688]
[1734138257213,6.0355,225.48,225.42,30.44709688]
[1734138257415,6.0355,225.48,225.39,30.44709688]
[1734138257574,6.0355,225.48,225.36,0.66545437]
[1734138257575,6.0355,225.48,225.34,30.44709688]
[1734138257775,6.0355,225.48,225.29,0.66540105]
[1734138257776,6.0355,225.48,225.33,30.44709688]
[1734138258088,12.688,225.48,225.34,30.44709688]
[1734138258391,20.0,225.45,225.33,30.44709688]
[1734138258882,6.6536,225.44,225.32,30.44709688]
[1734138259897,20.0,225.45,225.36,30.44709688]
[1734138260087,6.0355,225.48,225.38,30.44709688]
[1734138260396,6.0355,225.48,225.36,30.44709688]
[1734138260796,6.0355,225.48,225.34,30.44709688]
[1734138261171,6.0355,225.48,225.37,30.44709688]
[1734138261373,6.0355,225.48,225.4,30.44709688]
[1734138261710,6.0355,225.48,225.38,30.44709688]
[1734138262687,6.0355,225.48,225.35,30.44709688]
[1734138264298,6.6527,225.47,225.36,30.44709688]
[1734138264477,6.6527,225.47,225.35,30.44709688]
[1734138264878,6.6527,225.47,225.32,30.44709688]
[1734138265081,20.0,225.44,225.32,30.44709688]
[1734138265297,20.0,225.44,225.33,18.70490775]
[1734138265684,6.0355,225.48,225.4,18.70490775]
[1734138265891,6.0355,225.48,225.41,18.70490775]
[1734138266203,6.0355,225.48,225.38,18.70490775]
[1734138266976,6.0355,225.48,225.37,18.70490775]
[1734138267614,6.0355,225.48,225.39,18.70490775]
[1734138267901,6.0355,225.48,225.38,18.70490775]
[1734138268090,6.0355,225.48,225.4,18.70490775]
[1734138268287,6.0355,225.48,225.39,18.70490775]
[1734138268506,6.0355,225.48,225.4,18.70490775]
[1734138268717,6.0355,225.48,225.39,18.70490775]
[1734138270591,6.0355,225.48,225.35,23.776884]
[1734138270592,6.0355,225.48,225.35,18.70490775]
[1734138271110,6.0355,225.48,225.37,18.70490775]
[1734138271695,6.0355,225.48,225.35,18.70490775]
[1734138272011,6.0355,225.48,225.36,18.70490775]
[1734138273206,1.5281,225.44,225.32,18.70490775]
[1734138273513,1.5281,225.44,225.26,18.70490775]
[1734138273514,6.5519,225.42,225.26,18.70490775]
[1734138273695,20.0,225.39,225.26,18.70490775]
[1734138273893,20.0,225.39,225.3,18.70490775]
[1734138274089,20.0,225.39,225.29,18.70490775]
[1734138274290,6.5519,225.42,225.31,18.70490775]
[1734138274697,6.5519,225.42,225.3,18.70490775]
[1734138275499,6.5519,225.42,225.35,18.70490775]
[1734138276009,6.5519,225.42,225.34,18.70490775]
[1734138276515,6.5519,225.42,225.37,18.70490775]
[1734138276701,6.5519,225.42,225.38,18.70490775]
[1734138277209,6.5519,225.42,225.32,0.66539421]
[1734138277210,6.5519,225.42,225.29,0.66545741]
[1734138277386,6.5519,225.42,225.29,18.70490775]
[1734138277590,6.5519,225.42,225.31,18.70490775]
[1734138277809,6.5519,225.42,225.32,18.70490775]
[1734138278192,6.5519,225.42,225.34,18.70490775]
[1734138278401,6.5519,225.42,225.35,18.70490775]
[1734138278596,6.5519,225.42,225.32,18.70490775]
[1734138278904,6.5519,225.42,225.34,18.70490775]
[1734138281208,6.5519,225.42,225.37,18.70490775]
[1734138281721,1.5281,225.44,225.41,18.70490775]
[1734138281895,6.5519,225.48,225.41,18.70490775]
[1734138282213,6.5519,225.48,225.39,18.70490775]
[1734138282403,6.5519,225.48,225.4,18.70490775]
[1734138282600,6.5519,225.48,225.38,18.70490775]
[1734138282912,6.5519,225.48,225.37,18.70490775]
[1734138283095,6.5519,225.48,225.36,18.70490775]
[1734138283289,6.5519,225.48,225.37,18.70490775]
[1734138283609,6.5519,225.48,225.38,18.70490775]
[1734138284305,6.5519,225.48,225.36,18.70490775]
[1734138284624,6.5519,225.48,225.34,18.70490775]
[1734138284625,20.0,225.45,225.34,18.70490775]
[1734138285218,20.0,225.45,225.31,18.70490775]
[1734138285720,20.0,225.45,225.32,18.70490775]
[1734138286125,26.6534,225.45,225.31,18.70490775]
[1734138286298,26.6534,225.45,225.32,18.70490775]
[1734138288947,26.6534,225.45,225.34,18.70490775]
[1734138289305,26.6534,225.45,225.32,18.70490775]
[1734138290008,26.6534,225.45,225.34,18.70490775]
[1734138290206,26.6534,225.45,225.32,18.70490775]
[1734138291227,26.6534,225.45,225.34,18.70490775]
[1734138291525,26.6534,225.45,225.37,18.70490775]
[1734138291526,20.0,225.45,225.37,18.70490775]
[1734138291724,6.5519,225.48,225.37,18.70490775]
[1734138291923,6.5519,225.48,225.39,18.70490775]
[1734138292919,6.5519,225.48,225.37,18.70490775]
[1734138296026,6.5519,225.48,225.39,18.70490775]
[1734138296750,1.5281,225.5,225.47,18.70490775]
[1734138297040,6.4368,225.54,225.47,18.70490775]
[1734138297221,6.4368,225.54,225.49,18.70490775]
[1734138298314,6.4368,225.54,225.41,30.12549]
[1734138298315,6.4368,225.54,225.48,18.70490775]
[1734138298513,6.4368,225.54,225.49,18.70490775]
[1734138299207,6.4368,225.54,225.46,18.70490775]
[1734138300549,6.4368,225.54,225.44,18.70490775]
[1734138300712,6.4368,225.54,225.46,18.70490775]
[1734138301036,1.6451,225.56,225.53,18.70490775]
[1734138301223,1.6451,225.56,225.52,18.70490775]
[1734138301428,1.6451,225.56,225.51,18.70490775]
[1734138302334,1.6451,225.56,225.49,18.70490775]
[1734138302527,1.6451,225.56,225.5,18.70490775]
[1734138302732,1.6451,225.56,225.51,18.70490775]
[1734138303109,1.6451,225.56,225.52,18.70490775]
[1734138303314,6.4368,225.6,225.55,18.70490775]
[1734138303516,6.4368,225.6,225.52,18.70490775]
[1734138303715,6.4368,225.6,225.53,18.70490775]
[1734138303915,6.4368,225.6,225.52,18.70490775]
[1734138304114,6.4368,225.6,225.54,18.70490775]
[1734138304325,6.4368,225.66,225.58,18.70490775]